Cogmind - Beta 10.2 @@@ ROGUE MODE // 2020.12.09 @ 17:42:11 Player: AnthonyDPS 2004 Result: Destroyed by Y-45 Defender with Heavy Assault Rifle Performance ------------- Evolutions (2) 1000 Regions Visited (5) 1000 Robots Destroyed (5) 25 Value Destroyed (108) 108 Prototype IDs (3) 60 Alien Tech Used (0) 0 Bonus (0) 0 TOTAL SCORE: 2193 Bonus ------- None Cogmind --------- Core Integrity 0/550 Matter 205/300 Energy 100/100 System Corruption 0% Temperature Cool (9) Movement Core (300) Ox5 Location -8/Materials Parts ------- > --- POWER (1) -------- (None) > --- PROPULSION (4) --- (None) > --- UTILITY (4) ------ Large Storage Unit > --- WEAPON (2) ------- (None) > --- INVENTORY (10) --- Improved Hover Unit Improved Hover Unit Improved Cooling System Hardened Medium Armor Plating Hardened Medium Armor Plating Hacking Suite EM Pulse Gun EM Pulse Cannon Powered Hammer Peak State ------------ > --- POWER ------------ Light Deuterium Engine > --- PROPULSION ------- Improved Flight Unit Cesium-ion Thruster Cesium-ion Thruster Cesium-ion Thruster > --- UTILITY ---------- Large Storage Unit Sensor Array Improved Terrain Scanner Advanced Targeting Computer > --- WEAPON ----------- (None) > --- INVENTORY -------- Flight Unit Flight Unit Improved Cooling System Medium Storage Unit Hardened Medium Armor Plating Hardened Medium Armor Plating EM Pulse Gun Minigun Slug Cannon Powered Hammer [Rating: 24] Favorites ----------- Power Ion Engine Engine Ion Engine Propulsion Cesium-ion Thruster Wheel Compact Wheel Flight Unit Cesium-ion Thruster Utility Large Storage Unit Device Sensor Array Storage Large Storage Unit Processor Advanced Targeting Computer Protection Medium Armor Plating Weapon EM Pulse Gun Energy Gun EM Pulse Gun Ballistic Gun Light Assault Rifle Build | -11 -10 -10 -10 -9 -8 ------- Run | Scr Mat Min Exi Min Mat Slots Evolved 4 | . . . . . 4 Power . | . . . . . . Propulsion 2 | . . . . . 2 Utility 2 | . . . . . 2 Weapon . | . . . . . . Parts Attached 27 | 7 6 . . . 14 Power 4 | 1 1 . . . 2 Engine 4 | 1 1 . . . 2 Core . | . . . . . . Reactor . | . . . . . . Propulsion 11 | 2 2 . . . 7 Treads . | . . . . . . Leg . | . . . . . . Wheel 2 | 2 . . . . . Hover . | . . . . . . Flight 9 | . 2 . . . 7 Utility 8 | 1 2 . . . 5 Device 3 | . 1 . . . 2 Storage 3 | 1 1 . . . 1 Processor 1 | . . . . . 1 Hackware . | . . . . . . Protection 1 | . . . . . 1 Artifact . | . . . . . . Weapon 4 | 3 1 . . . . Energy Gun 3 | 3 . . . . . Energy Cannon . | . . . . . . Ballistic Gun 1 | . 1 . . . . Ballistic Cannon . | . . . . . . Launcher . | . . . . . . Special Weapon . | . . . . . . Impact Weapon . | . . . . . . Slashing Weapon . | . . . . . . Piercing Weapon . | . . . . . . Special Melee Weapon . | . . . . . . Unidentified Prototypes 1 | . . . . . 1 Parts Lost 12 | . 3 . . . 9 Power 1 | . . . . . 1 Propulsion 7 | . 1 . . . 6 Utility 2 | . . . . . 2 Weapon 2 | . 2 . . . . Highest Loss Streak 9 | . 3 . . . 9 Average Slot Usage (%) 63 | . 74 57 42 42 68 Engine 8 | . 14 7 . . 7 Wheel 3 | . 18 . . . . Flight 26 | . 7 28 28 28 33 Device 7 | . . 7 . . 12 Storage 11 | . 14 14 14 14 9 Processor 2 | . . . . . 4 Energy Gun 3 | . 16 . . . . Naked Turns . | . . . . . . Heaviest Build 23 | 13 13 12 8 8 23 Greatest Support 26 | 26 26 8 8 8 24 Greatest Overweight (x) 7 | . 3 1 . . 7 Average Overweight (x) . | . . . . . . Largest Inventory Capacity 14 | 6 8 8 8 8 14 Average Capacity 8 | 5 6 8 8 8 10 Most Carried 10 | 6 6 8 8 8 10 Average Carried 7 | 3 5 6 7 8 9 Final Capacity 10 | 6 8 8 8 8 10 Final Carried 9 | 4 6 8 8 8 9 Class Distribution -------------------- 69% | Mutant 30% | Sprinter Dominant Class ---------------- Mutant | -10/Materials Mutant | -10/Mines Mutant | -10/Exiles Mutant | -9/Mines Sprinter | -8/Materials Resources | -11 -10 -10 -10 -9 -8 ----------- Run | Scr Mat Min Exi Min Mat Matter Collected 335 | 251 64 20 . . . Remotely . | . . . . . . Salvage Created 148 | . 148 . . . . Parts 15 | . 15 . . . . Haulers Intercepted . | . . . . . . Recyclers Shooed . | . . . . . . Parts Field Recycled . | . . . . . . Retrieved Matter . | . . . . . . Parts Self-Destructed . | . . . . . . Prevented . | . . . . . . Kills | -11 -10 -10 -10 -9 -8 ------- Run | Scr Mat Min Exi Min Mat Combat Hostiles Destroyed 5 | . 5 . . . . Guns 5 | . 5 . . . . Classes Destroyed 2 | . 2 . . . . Swarmer 3 | . 3 . . . . Grunt 2 | . 2 . . . . Best Kill Streak 3 | . 3 . . . . Combat Bots Only 3 | . 3 . . . . Max Kills in Single Turn 1 | . 1 . . . . Gunslinging . | . . . . . . Exploded . | . . . . . . Melee . | . . . . . . Uniques/NPCs Destroyed . | . . . . . . Combat | -11 -10 -10 -10 -9 -8 -------- Run | Scr Mat Min Exi Min Mat Damage Taken 1399 | . 400 16 . 12 971 Core 663 | . 105 8 . . 550 Absorbed by Shields . | . . . . . . Core Remaining (%) 77 | 100 . . . 54 . Volleys Fired 29 | . 29 . . . . Largest 2 | . 2 . . . . Hottest 80 | . 80 . . . . Shots Fired 38 | . 38 . . . . Gun 38 | . 38 . . . . Cannon . | . . . . . . Launcher . | . . . . . . Special . | . . . . . . Kinetic 20 | . 20 . . . . Thermal . | . . . . . . Explosive . | . . . . . . Electromagnetic 18 | . 18 . . . . Robot Hit Streak 7 | . 7 . . . . Robot Miss Streak 6 | . 6 . . . . Penetration Max . | . . . . . . Secondary Targets 1 | . 1 . . . . Max Gunslinging Chain 1 | . 1 . . . . Shots Hit Robots 21 | . 21 . . . . Core Hits 8 | . 8 . . . . Critical Hits . | . . . . . . Critical Kills . | . . . . . . Critical Parts Destroyed . | . . . . . . Melee Attacks . | . . . . . . Impact . | . . . . . . Slashing . | . . . . . . Piercing . | . . . . . . Sneak Attacks . | . . . . . . Combat Hostiles . | . . . . . . Follow-up Attacks . | . . . . . . Damage Inflicted 222 | . 222 . . . . Guns 222 | . 222 . . . . Cannons . | . . . . . . Explosions . | . . . . . . Melee . | . . . . . . Ramming . | . . . . . . Kinetic 70 | . 70 . . . . Thermal . | . . . . . . Explosive . | . . . . . . Electromagnetic 152 | . 152 . . . . Impact . | . . . . . . Slashing . | . . . . . . Piercing . | . . . . . . Highest Corruption . | . . . . . . Average Corruption . | . . . . . . Corruption Purged . | . . . . . . Overload Shots . | . . . . . . Overflow Damage . | . . . . . . Projectiles . | . . . . . . Explosions . | . . . . . . Melee . | . . . . . . Knockbacks . | . . . . . . Impact . | . . . . . . Kinetic . | . . . . . . Secondary . | . . . . . . Self-Inflicted Damage . | . . . . . . Shots . | . . . . . . Rammed . | . . . . . . Targets Rammed . | . . . . . . Kicked . | . . . . . . Crushed . | . . . . . . Highest Temperature 192 | . 192 . . . 4 Average Temperature 103 | . 109 . . . 4 Received Heat Transfer 285 | . 72 . . 6 207 Siege Activations . | . . . . . . Robots Corrupted . | . . . . . . Combat Hostiles . | . . . . . . Parts Fried 1 | . 1 . . . . Impact Corruptions . | . . . . . . Robots Melted . | . . . . . . Combat Hostiles . | . . . . . . Parts Melted . | . . . . . . Heat Transferred . | . . . . . . Parts Sabotaged . | . . . . . . Parts Stolen . | . . . . . . Parts Stripped . | . . . . . . Power Chain Reactions . | . . . . . . Missiles Intercepted . | . . . . . . Alert | -11 -10 -10 -10 -9 -8 ------- Run | Scr Mat Min Exi Min Mat Peak Influence 176 | . 176 113 . 45 75 Initial 68 | . . 68 . . 17 Average 54 | . 82 86 . 21 29 Maximum Alert Level . | . . . . . . Low Security (%) 100 | 100 100 100 . 100 100 Level 1 . | . . . . . . Level 2 . | . . . . . . Level 3 . | . . . . . . Level 4 . | . . . . . . Level 5 . | . . . . . . High Security . | . . . . . . Max Security . | . . . . . . Squads Dispatched 3 | . 2 . . . 1 Investigation 1 | . 1 . . . . Extermination . | . . . . . . Reinforcement 2 | . 1 . . . 1 Assault . | . . . . . . Garrison . | . . . . . . Intercept . | . . . . . . Construction Impeded . | . . . . . . Haulers Reinforced . | . . . . . . Stealth | -11 -10 -10 -10 -9 -8 --------- Run | Scr Mat Min Exi Min Mat Distress Signals 3 | . 1 . . . 2 Communications Jammed . | . . . . . . Distress Signals . | . . . . . . Times Spotted 30 | . 9 2 . 2 17 Peak Tracking Total 11 | . 6 3 . 2 11 Tactical Retreats 7 | . 1 2 . 2 2 Traps | -11 -10 -10 -10 -9 -8 ------- Run | Scr Mat Min Exi Min Mat Traps Triggered . | . . . . . . Indirectly . | . . . . . . Trap Hack Attempts . | . . . . . . Triggered . | . . . . . . Disarmed . | . . . . . . Reprogrammed 6 | . 6 . . . . Reused 1 | . 1 . . . . Traps Extracted . | . . . . . . Installed . | . . . . . . Triggered 1 | . 1 . . . . Machines | -11 -10 -10 -10 -9 -8 ---------- Run | Scr Mat Min Exi Min Mat Machines Disabled 1 | . 1 . . . . Max in Single Turn 1 | . 1 . . . . Machines Sabotaged . | . . . . . . Garrisons Compromised . | . . . . . . Overloaded Fab Kills . | . . . . . . Fab Network Shutdowns . | . . . . . . Hacking | -11 -10 -10 -10 -9 -8 --------- Run | Scr Mat Min Exi Min Mat Machines Accessed 9 | . 3 . 1 . 5 Terminals 4 | . 2 . . . 2 Fabricators . | . . . . . . Repair Stations . | . . . . . . Recycling Units 3 | . 1 . . . 2 Scanalyzers 1 | . . . . . 1 Garrison Access . | . . . . . . Total Hacks 23 | . 7 . 2 . 14 Successful 19 | . 6 . 2 . 11 Failed 4 | . 1 . . . 3 Catastrophic . | . . . . . . Database Lockouts . | . . . . . . Manual . | . . . . . . Terminals 11 | . 6 . . . 5 Fabricators . | . . . . . . Repair Stations . | . . . . . . Recycling Units 4 | . 1 . . . 3 Scanalyzers 6 | . . . . . 6 Garrison Access . | . . . . . . Terminal Hacks 9 | . 5 . 2 . 2 Record 3 | . . . 2 . 1 Prototype ID Bank 1 | . . . . . 1 Emergency Access Points 1 | . 1 . . . . Locate Traps 2 | . 2 . . . . Reprogram Traps 2 | . 2 . . . . Fabricator Hacks . | . . . . . . Repair Station Hacks . | . . . . . . Recycling Unit Hacks 4 | . 1 . . . 3 Report Inventory 3 | . 1 . . . 2 Retrieve Components 1 | . . . . . 1 Scanalyzer 6 | . . . . . 6 Insert Component 3 | . . . . . 3 Analyze 3 | . . . . . 3 Garrison Access Hacks . | . . . . . . Unauthorized Hacks . | . . . . . . Terminals . | . . . . . . Fabricators . | . . . . . . Repair Stations . | . . . . . . Recycling Units . | . . . . . . Scanalyzers . | . . . . . . Garrison Access . | . . . . . . Data Cores Recovered . | . . . . . . Used . | . . . . . . Hacking Detections 3 | . 1 . . . 2 Full Trace Events . | . . . . . . Feedback Events . | . . . . . . Feedback Blocked . | . . . . . . Robot Schematics Acquired . | . . . . . . Robots Built . | . . . . . . Matter . | . . . . . . Time . | . . . . . . Total Robot Build Rating . | . . . . . . Part Schematics Acquired 3 | . . . . . 3 Parts Built . | . . . . . . Matter . | . . . . . . Time . | . . . . . . Total Part Build Rating . | . . . . . . Parts Repaired . | . . . . . . Time . | . . . . . . Parts Recycled . | . . . . . . Recycled Matter . | . . . . . . Retrieved Matter . | . . . . . . Retrieved Components 3 | . . . . . 3 Parts Scanalyzed 3 | . . . . . 3 Part Schematics Acquired 3 | . . . . . 3 Parts Damaged . | . . . . . . Bothacking | -11 -10 -10 -10 -9 -8 ------------ Run | Scr Mat Min Exi Min Mat Used RIF Installer . | . . . . . . Robots Hacked . | . . . . . . Non-combat . | . . . . . . Combat . | . . . . . . Robot Hacks Applied . | . . . . . . Relay Couplers Released . | . . . . . . Robots Rewired . | . . . . . . Allies Hacked . | . . . . . . Hacks Repelled . | . . . . . . Allies | -11 -10 -10 -10 -9 -8 -------- Run | Scr Mat Min Exi Min Mat Total Allies . | . . . . . . Largest Group . | . . . . . . Highest-Rated Group . | . . . . . . Highest-Rated Ally . | . . . . . . Total Orders . | . . . . . . Ally Attacks . | . . . . . . Total Damage . | . . . . . . Kills . | . . . . . . Allies Corrupted . | . . . . . . Allies Melted . | . . . . . . Intel | -11 -10 -10 -10 -9 -8 ------- Run | Scr Mat Min Exi Min Mat Robot Analysis Total . | . . . . . . Derelict Logs Recovered 2 | . . 2 . . . Drone Launches . | . . . . . . Drone Recoveries . | . . . . . . Exploration | -11 -10 -10 -10 -9 -8 ------------- Run | Scr Mat Min Exi Min Mat Turns Passed 1448 | 51 277 382 100 66 572 Spaces Moved 1496 | 41 193 394 152 93 623 Core 10 | 2 1 . . . 7 Treads . | . . . . . . Legs . | . . . . . . Wheels 123 | 39 84 . . . . Hover . | . . . . . . Flight 1363 | . 108 394 152 93 616 Fastest Speed 29 | 50 37 37 37 37 29 Average Speed 52 | 87 68 72 37 37 39 Slowest Speed 400 | 90 200 117 37 37 400 Overloaded Moves . | . . . . . . Propulsion Burnouts . | . . . . . . Robots Hopped 2 | . . . . . 2 Cave-ins Triggered . | . . . . . . Exploration Rate (%) 38 | 4 29 80 54 23 41 Regions Visited 5 Branch Regions 3 Pre-discovered Areas 2 | . . 1 1 . . Known Exits Taken . | . . . . . . Unknown Exits Taken 5 | 1 1 1 1 1 . Scrap Searched 3 | . . 2 . 1 . Spaces Dug . | . . . . . . Terrain Destroyed . | . . . . . . Melee . | . . . . . . Projectile . | . . . . . . AOE . | . . . . . . Terrain Rammed . | . . . . . . Walls Destroyed . | . . . . . . Machines Disabled . | . . . . . . Actions | -11 -10 -10 -10 -9 -8 --------- Run | Scr Mat Min Exi Min Mat Total 2117 | 54 304 490 195 123 951 Wait 529 | . 66 93 42 31 297 Move 1487 | 40 192 393 151 92 619 Hop 2 | . . . . . 2 Pick Up 24 | 7 5 2 1 . 9 Fast Attach 12 | 3 3 . . . 6 Attach 10 | 3 1 . . . 6 Detach 1 | . . . . . 1 Swap 5 | 1 2 . . . 2 Drop 18 | . 6 2 1 . 9 Fire 29 | . 29 . . . . Melee . | . . . . . . Ram . | . . . . . . Kick . | . . . . . . Crush . | . . . . . . Escape Stasis . | . . . . . . Rewire . | . . . . . . Trap . | . . . . . . Miscellaneous . | . . . . . . Route ------- -11/Scrapyard -10/Materials -10/Mines -10/Exiles -9/Mines -8/Materials (discovered 1 exit: Fac) History --------- Turn | Location | Event 5 | -11/Scrapyard | Discovered new exit (range 16) 52 | -11/Scrapyard | Entered Materials 249 | -10/Materials | Lost 3 parts (1n2w) 312 | -10/Materials | Discovered new exit (range 10) 329 | -10/Materials | Entered Mines 338 | -10/Mines | Build established: Mutant 353 | -10/Mines | Learned 4 Materials zone layouts 380 | -10/Mines | Met a Derelict bent on vengeance 563 | -10/Mines | Learned location of Storage (-7) 590 | -10/Mines | A weapon hastily lodged in a ceiling crevice suddenly fell to the ground 709 | -10/Mines | Deemed a non-threat by the Exiles lab entrance 709 | -10/Mines | Discovered new exit (range 5) 711 | -10/Mines | Entered Exiles 721 | -10/Exiles | Met 8R-AWN 727 | -10/Exiles | Met EX-HEX 761 | -10/Exiles | Met EX-DEC 772 | -10/Exiles | Learned location of Zion (-6) 782 | -10/Exiles | Discovered new exit (range 14) 811 | -10/Exiles | Entered Mines 837 | -9/Mines | Discovered new exit (range 9) 877 | -9/Mines | Entered Materials 877 | -8/Materials | Evolved 4 slots: Propulsion x2, Utility x2 878 | -8/Materials | Identified exit to Factory 1294 | -8/Materials | Build established: Sprinter 1434 | -8/Materials | Core integrity fell below 50% 1445 | -8/Materials | Core integrity fell below 20% 1449 | -8/Materials | Destroyed by Y-45 Defender with Heavy Assault Rifle Last Messages --------------- >>Scanalyze Scanning: Hrd. Medium Armor Plating... Schematic downloaded. 01375_ O-16 Technician: "IFF HANDSHAKE FAILED. SECURING TERMINAL." 01376_ W-25 Informer sends out distress signal. 01377_ Connecting with Repair Station... 01381_ Dropped Flight Unit. 01381_ Acquired Hacking Suite. 01382_ Cesium-ion Thruster destroyed. 01383_ ALERT: Hostiles spotted, dispatching reinforcements to Terminal M007. 01384_ Dropped Imp. Terrain Scanner. 01385_ Cesium-ion Thruster destroyed. 01387_ Acquired Flight Unit. 01391_ Flight Unit destroyed. 01399_ Lgt. Deuterium Engine destroyed. 01417_ S-10 Pest destroyed. 01421_ Cesium-ion Thruster destroyed. 01429_ Imp. Flight Unit destroyed. 01434_ Sensor Array destroyed. 01440_ Adv. Targeting Computer destroyed. Map ----- +----------------------------------------------------+ | | | | | | | | | | | | | | | | | | | | | ??????????????????????????????????????????????? | | ??????????#######?????????????????????????????? | | ??????????# ######????????????????????????? | | ########### ! #????????????????????????? | | "" #????????????????????????? | | ####### #????????????????????????? | | ####??# ####/#######??????????????????? | | "" """#??## ### T ! #??????????????????? | | "" R"#???# #?# #??????????????????? | | "" """#???# #?# #??????????????????? | | ####???# #?# """ #??????????????????? | | #??#?### #?# """"" !#??????????????????? | | #????? ?# """"" #??????????????????? | | +#####????! # """"" #??????????????????? | | ##### T" # """ #??????????????????? | | / " + Y @ #??????????????????? | | ##### # """ #??????????????????? | | #???# ?? + """""Ys#??????????????????? | | ##??????? ?# =""""" s#??????????????????? | | #???????????#[%""""" #??????????????????? | | #???????? ??# """ #??????????????????? | | #???????? ??# Y #??????????????????? | | ###+##?????????? # ! #??????????????????? | | ??# #??????????? ###### ####??????????????????? | | ??# #????"????????????###?????????????????????? | | ??# #???????????????#????????? ???????????????? | | ??# #????????????????????#???#????????????????? | | ??# #???????????????????#?????????????????????? | | ??# #??????########???????????????????????????? | | ??# #??????#! #???????????????????????????? | | ?## ##?????# ##??????????????????????????? | | ?# ####### "S #???????????????????????????? | | ?# + """ #???????????? ??????????????? | | ?# # "" #???????????????????????????? | | ?# # #???????????????????????????? | | ?# ########?#????????#????????????????? | | ## ########??????????????????????????????????? | | #?????#???????????????????????????????????? | | #####?????????????????????????????????????????? | | ??????????????????????????????????????????????? | +----------------------------------------------------+ Best States ------------- Heat Dissipation 31 Energy Generation 14 Energy Capacity 250 Matter Stores 300 Matter Capacity 300 Sight Range 16 Robot Scan Range 10 Terrain Scan Range 16 Terrain Scan Density 10 Evasion (%) 64 Targeting Accuracy 8 Item Schematics ----------------- Imp. Hover Unit | -8/Materials | Scanalyzed Flight Unit | -8/Materials | Scanalyzed Hrd. Medium Armor Plating | -8/Materials | Scanalyzed Robot Schematics ------------------ None Fabricated ------------ Nothing Alien Tech Used ----------------- None Achievements -------------- None Challenges ------------ None Game ------ Seed FlightStealthSlayer Manual? 0 Play Time 00:34:14 Cumulative 13.0 hours Start 2020.12.09 @ 17:10:00 End 2020.12.09 @ 17:42:11 Sessions 1 Manual Loads 0 Difficulty Rogue Special Mode None Game No. 27 Rogue 27 Adventurer 0 Explorer 0 Win Type - Total 0 Types 0/0/0/0/0/0/0/0/0 Lore% 18 Gallery% 19 Achievement% 15 Wizard Run 0 Options --------- ASCII 0 Keyboard 0 Movement Numpad Keybinds 0 Fullscreen 0 Font 12/Smallcaps Map View 83x54 Tactical HUD 1 Map Filters NONE Filters NONE Steam 1 RUN: a6c3e888-c638-45ab-b917-107ec57e5aea